Cogmind - Beta 11 *** ADVENTURER MODE // 2022.04.14 @ 18:06:56 Player: Biby Result: Destroyed by YI-UF0 with YI-UF0's Doublenader Performance ------------- Evolutions (0) 0 Regions Visited (4) 800 Robots Destroyed (19) 95 Value Destroyed (348) 348 Prototype IDs (0) 0 Alien Tech Used (0) 0 Bonus (21) 21 TOTAL SCORE: 1264 Bonus ------- Follower Combat Kills 21 Cogmind --------- Core Integrity 0/250 Matter 245/300 Energy 248/250 System Corruption 5% Temperature Cool (1) Movement Walking (260) Ox2 Location -9/Mines Parts ------- > --- POWER (1) -------- Ion Engine > --- PROPULSION (2) --- Aluminum Leg > --- UTILITY (2) ------ Large Storage Unit Makeshift Terrain Scanner > --- WEAPON (2) ------- Small Laser > --- INVENTORY (15) --- Ion Engine Light Ion Engine Light Treads Light Treads Flight Unit Flight Unit Flight Unit Heat Sink Peak State ------------ > --- POWER ------------ Ion Engine > --- PROPULSION ------- Aluminum Leg Aluminum Leg > --- UTILITY ---------- Small Storage Unit Makeshift Terrain Scanner > --- WEAPON ----------- Small Laser Hammer > --- INVENTORY -------- Ion Engine Light Ion Engine Light Ion Engine Light Treads Light Treads Aluminum Leg Heat Sink Light Assault Rifle [Rating: 13] Favorites ----------- Power Ion Engine Engine Ion Engine Propulsion Aluminum Leg Leg Aluminum Leg Wheel Compact Wheel Utility Small Storage Unit Device Makeshift Terrain Scanner Storage Small Storage Unit Protection Weapon Shielding Weapon Small Laser Energy Gun Small Laser Ballistic Gun Light Assault Rifle Launcher Grenade Launcher Impact Weapon Hammer Build | -11 -10 -10 -10 -9 ------- Run | Scr Mat Min Exi Min Slots Evolved . | . . . . . Power . | . . . . . Propulsion . | . . . . . Utility . | . . . . . Weapon . | . . . . . Parts Attached 18 | 6 1 6 5 . Power 3 | 1 . 1 1 . Engine 3 | 1 . 1 1 . Core . | . . . . . Reactor . | . . . . . Propulsion 5 | 2 . 2 1 . Treads . | . . . . . Leg 3 | . . 2 1 . Wheel 2 | 2 . . . . Hover . | . . . . . Flight . | . . . . . Utility 4 | 1 1 . 2 . Device 1 | . . . 1 . Storage 2 | 1 . . 1 . Processor . | . . . . . Hackware . | . . . . . Protection 1 | . 1 . . . Artifact . | . . . . . Weapon 6 | 2 . 3 1 . Energy Gun 3 | 2 . 1 . . Energy Cannon . | . . . . . Ballistic Gun 1 | . . . 1 . Ballistic Cannon . | . . . . . Launcher 1 | . . 1 . . Special Weapon . | . . . . . Impact Weapon 1 | . . 1 . . Slashing Weapon . | . . . . . Piercing Weapon . | . . . . . Special Melee Weapon . | . . . . . Unidentified Prototypes . | . . . . . Parts Lost 7 | . . 3 2 2 Power 1 | . . 1 . . Propulsion 2 | . . . 1 1 Utility . | . . . . . Weapon 4 | . . 2 1 1 Highest Loss Streak 2 | . . 2 2 2 To Critical Strikes . | . . . . . Average Slot Usage (%) 98 | . 97 95 99 98 Engine 13 | . 14 13 14 14 Leg 24 | . . 23 28 27 Wheel 3 | . 28 4 . . Device 7 | . . . 12 14 Storage 14 | . 14 14 14 14 Protection 6 | . 11 14 1 . Energy Gun 15 | . 28 15 14 14 Ballistic Gun 5 | . . . 8 13 Launcher 1 | . . 5 . . Impact Weapon 4 | . . 2 5 . Naked Turns . | . . . . . Heaviest Build 29 | 11 12 13 29 28 Greatest Support 26 | 26 26 26 20 20 Greatest Overweight (x) 2 | . . . 1 2 Average Overweight (x) . | . . . . 1 Largest Inventory Capacity 15 | 8 8 8 15 15 Average Capacity 11 | 7 8 8 13 15 Most Carried 8 | 6 8 8 8 8 Average Carried 6 | 2 7 7 5 7 Final Capacity 15 | 8 8 8 15 15 Final Carried 8 | 6 8 8 5 8 Class Distribution -------------------- 100% | Mutant Dominant Class ---------------- Mutant | -10/Materials Mutant | -10/Mines Mutant | -10/Exiles Mutant | -9/Mines Resources | -11 -10 -10 -10 -9 ----------- Run | Scr Mat Min Exi Min Matter Collected 387 | 181 89 85 . 32 Remotely . | . . . . . Salvage Created 451 | . 237 214 . . Parts 30 | . 6 24 . . Haulers Intercepted . | . . . . . Recyclers Shooed . | . . . . . Parts Field Recycled . | . . . . . Retrieved Matter . | . . . . . Parts Self-Destructed . | . . . . . Prevented . | . . . . . Kills | -11 -10 -10 -10 -9 ------- Run | Scr Mat Min Exi Min Combat Hostiles Destroyed 17 | . 3 14 . . Guns 12 | . 2 10 . . AOE 5 | . 1 4 . . Classes Destroyed 4 | . 3 1 . . Recycler 1 | . 1 . . . Watcher 1 | . 1 . . . Swarmer 12 | . . 12 . . Grunt 5 | . 3 2 . . Best Kill Streak 5 | . 4 5 . . Combat Bots Only 5 | . 2 5 . . Max Kills in Single Turn 3 | . 2 3 . . Gunslinging . | . . . . . Exploded 3 | . 1 3 . . Melee . | . . . . . Uniques/NPCs Destroyed . | . . . . . Combat | -11 -10 -10 -10 -9 -------- Run | Scr Mat Min Exi Min Damage Taken 988 | . 152 340 244 252 Core 258 | . 46 72 103 37 Absorbed by Shields . | . . . . . Redirected to Shielding 38 | . 9 29 . . Core Remaining (%) 100 | 100 . . . . Volleys Fired 53 | . 10 33 8 2 Largest 2 | . 2 2 1 1 Hottest 80 | . 80 80 40 20 Shots Fired 71 | . 20 40 8 3 Gun 68 | . 20 37 8 3 Cannon . | . . . . . Launcher 3 | . . 3 . . Special . | . . . . . Kinetic 4 | . . . 1 3 Thermal 47 | . 10 30 7 . Explosive 3 | . . 3 . . Electromagnetic 17 | . 10 7 . . Robot Hit Streak 9 | . 5 9 . 4 Robot Miss Streak 2 | . 1 2 . . Penetration Max . | . . . . . Secondary Targets 1 | . 1 . . . Max Gunslinging Chain 1 | . 1 . . . Shots Hit Robots 41 | . 14 24 1 2 Core Hits 24 | . 8 16 . . Critical Kills . | . . . . . Critical Parts Destroyed . | . . . . . Critical Strikes . | . . . . . Melee Attacks 51 | . . 33 18 . Impact 51 | . . 33 18 . Slashing . | . . . . . Piercing . | . . . . . Sneak Attacks . | . . . . . Combat Hostiles . | . . . . . Follow-up Attacks . | . . . . . Damage Inflicted 976 | . 420 473 67 16 Guns 478 | . 209 253 . 16 Cannons . | . . . . . Explosions 431 | . 211 220 . . Melee 67 | . . . 67 . Ramming . | . . . . . Kinetic 16 | . . . . 16 Thermal 457 | . 269 188 . . Explosive 220 | . . 220 . . Electromagnetic 216 | . 151 65 . . Impact 67 | . . . 67 . Slashing . | . . . . . Piercing . | . . . . . Highest Corruption 5 | . . . 5 5 Average Corruption 5 | . . . 5 5 Corruption Purged . | . . . . . Corruption Blocked . | . . . . . Effects 24 | . . . 21 3 Message Errors 6 | . . . 6 . Matter Fused 7 | . . . 6 1 Energy Discharges 6 | . . . 5 1 Data Loss (minor) 1 | . . . 1 . Data Loss (major) 2 | . . . 2 . Misfires 1 | . . . . 1 Alerts 1 | . . . 1 . Overload Shots . | . . . . . Overflow Damage . | . . . . . Projectiles . | . . . . . Explosions . | . . . . . Melee . | . . . . . Knockbacks . | . . . . . Impact . | . . . . . Kinetic . | . . . . . Secondary . | . . . . . Self-Inflicted Damage 24 | . 24 . . . Shots 1 | . 1 . . . Rammed . | . . . . . Targets Rammed . | . . . . . Kicked . | . . . . . Crushed . | . . . . . Highest Temperature 93 | . 93 60 . 2 Average Temperature 38 | . 46 31 . 2 Received Heat Transfer 138 | . 93 33 . 12 Siege Activations . | . . . . . Robots Corrupted . | . . . . . Combat Hostiles . | . . . . . Parts Fried 1 | . 1 . . . Impact Corruptions . | . . . . . Robots Melted . | . . . . . Combat Hostiles . | . . . . . Parts Melted 1 | . 1 . . . Heat Transferred 850 | . 425 425 . . Parts Sabotaged . | . . . . . Parts Stolen . | . . . . . Parts Stripped . | . . . . . Power Chain Reactions 2 | . 2 . . . Missiles Intercepted . | . . . . . Alert | -11 -10 -10 -10 -9 ------- Run | Scr Mat Min Exi Min Peak Influence 314 | . 118 314 . 118 Initial 38 | . . 38 . . Average 131 | . 51 156 . 115 Maximum Alert Level 1 | . . 1 . . Low Security (%) 82 | 100 100 74 . 100 Level 1 17 | . . 25 . . Level 2 . | . . . . . Level 3 . | . . . . . Level 4 . | . . . . . Level 5 . | . . . . . High Security . | . . . . . Max Security . | . . . . . Squads Dispatched . | . . . . . Investigation . | . . . . . Extermination . | . . . . . Reinforcement . | . . . . . Assault . | . . . . . Garrison . | . . . . . Intercept . | . . . . . Searches Triggered . | . . . . . Construction Impeded . | . . . . . Haulers Reinforced . | . . . . . Active Scanning Responses . | . . . . . Cargo Convoy Interrupts . | . . . . . Stealth | -11 -10 -10 -10 -9 --------- Run | Scr Mat Min Exi Min Distress Signals 1 | . 1 . . . Communications Jammed . | . . . . . Distress Signals . | . . . . . Times Spotted 24 | . 5 15 . 4 Peak Tracking Total 5 | . 4 5 . 3 Tactical Retreats 1 | . . 1 . . Traps | -11 -10 -10 -10 -9 ------- Run | Scr Mat Min Exi Min Traps Triggered . | . . . . . Indirectly . | . . . . . Trap Hack Attempts . | . . . . . Triggered . | . . . . . Disarmed . | . . . . . Reprogrammed . | . . . . . Reused . | . . . . . Traps Extracted . | . . . . . Installed . | . . . . . Triggered . | . . . . . Machines | -11 -10 -10 -10 -9 ---------- Run | Scr Mat Min Exi Min Machines Disabled 1 | . . . . 1 Max in Single Turn . | . . . . . Machines Sabotaged . | . . . . . Garrisons Compromised . | . . . . . Overloaded Fab Kills . | . . . . . Hacking | -11 -10 -10 -10 -9 --------- Run | Scr Mat Min Exi Min Machines Accessed 5 | . 1 . 4 . Terminals 1 | . 1 . . . Fabricators . | . . . . . Repair Stations . | . . . . . Recycling Units . | . . . . . Scanalyzers . | . . . . . Garrison Access . | . . . . . Total Hacks 51 | . 2 . 49 . Successful 51 | . 2 . 49 . Failed . | . . . . . Catastrophic . | . . . . . Database Lockouts . | . . . . . Manual . | . . . . . Terminals 2 | . 2 . . . Fabricators . | . . . . . Repair Stations . | . . . . . Recycling Units . | . . . . . Scanalyzers . | . . . . . Garrison Access . | . . . . . Terminal Hacks 51 | . 2 . 49 . Record 51 | . 2 . 49 . Fabricator Hacks . | . . . . . Repair Station Hacks . | . . . . . Recycling Unit Hacks . | . . . . . Scanalyzer . | . . . . . Garrison Access Hacks . | . . . . . Unauthorized Hacks . | . . . . . Terminals . | . . . . . Fabricators . | . . . . . Repair Stations . | . . . . . Recycling Units . | . . . . . Scanalyzers . | . . . . . Garrison Access . | . . . . . Data Cores Recovered . | . . . . . Used . | . . . . . Hacking Detections 1 | . 1 . . . Full Trace Events . | . . . . . Feedback Events . | . . . . . Feedback Blocked . | . . . . . Robot Schematics Acquired . | . . . . . Robots Built . | . . . . . Authchips . | . . . . . Time . | . . . . . Total Robot Build Rating . | . . . . . Part Schematics Acquired . | . . . . . Parts Built . | . . . . . Authchips . | . . . . . Time . | . . . . . Total Part Build Rating . | . . . . . Parts Repaired . | . . . . . Time . | . . . . . Parts Recycled . | . . . . . Recycled Matter . | . . . . . Retrieved Matter . | . . . . . Retrieved Components . | . . . . . Parts Scanalyzed . | . . . . . Part Schematics Acquired . | . . . . . Parts Damaged . | . . . . . Bothacking | -11 -10 -10 -10 -9 ------------ Run | Scr Mat Min Exi Min Used RIF Installer . | . . . . . Robots Hacked . | . . . . . Non-combat . | . . . . . Combat . | . . . . . Robot Hacks Applied . | . . . . . Relay Couplers Released . | . . . . . Fabnet Peak Effective % . | . . . . . Robots Rewired 2 | . . . 2 . Allies Hacked . | . . . . . Hacks Repelled . | . . . . . Allies | -11 -10 -10 -10 -9 -------- Run | Scr Mat Min Exi Min Total Allies 2 | . . . 2 . Largest Group 2 | . . . 2 1 Highest-Rated Group 29 | . . . 29 21 Highest-Rated Ally 21 | . . . 21 21 Total Orders 7 | . . . 4 3 ROAM 2 | . . . 2 . FOLLOW 2 | . . . 2 . GUARD 2 | . . . . 2 AID 1 | . . . . 1 Ally Attacks 3 | . . . . 3 Total Damage 224 | . . . . 224 Kills 4 | . . . . 4 Allies Corrupted . | . . . . . Allies Melted . | . . . . . Intel | -11 -10 -10 -10 -9 ------- Run | Scr Mat Min Exi Min Robot Analysis Total . | . . . . . Derelict Logs Recovered 1 | . . 1 . . Drone Launches . | . . . . . Drone Recoveries . | . . . . . Exploration | -11 -10 -10 -10 -9 ------------- Run | Scr Mat Min Exi Min Turns Passed 2920 | 59 181 1036 1456 188 Spaces Moved 1764 | 53 151 679 785 96 Core 17 | 17 . . . . Treads . | . . . . . Legs 1432 | . . 551 785 96 Wheels 315 | 36 151 128 . . Hover . | . . . . . Flight . | . . . . . Fastest Speed 50 | 50 90 90 120 190 Average Speed 141 | 77 90 114 173 190 Slowest Speed 260 | 90 90 120 190 260 Overloaded Moves . | . . . . . Propulsion Burnouts . | . . . . . Robots Hopped . | . . . . . Cave-ins Triggered 1 | . . . 1 . Exploration Rate (%) 44 | 3 29 94 72 25 Regions Visited 4 Branch Regions 3 Pre-discovered Areas 2 | . . 1 1 . Known Exits Taken . | . . . . . Unknown Exits Taken 4 | 1 1 1 1 . Scrap Searched 1 | . . 1 . . Spaces Dug 15 | . . 13 2 . Terrain Destroyed 44 | . 7 35 2 . Melee 15 | . . 13 2 . Projectile . | . . . . . AOE 29 | . 7 22 . . Terrain Rammed . | . . . . . Walls Destroyed . | . . . . . Machines Disabled . | . . . . . Actions | -11 -10 -10 -10 -9 --------- Run | Scr Mat Min Exi Min Total 2027 | 70 175 842 839 101 Wait 90 | . 11 79 . . Move 1760 | 52 150 678 784 96 Hop . | . . . . . Pick Up 30 | 12 3 8 4 3 Fast Attach 2 | . . . 2 . Attach 12 | 6 1 3 2 . Detach . | . . . . . Swap 4 | . . 3 1 . Drop 9 | . . 5 4 . Fire 53 | . 10 33 8 2 Melee 51 | . . 33 18 . Ram . | . . . . . Kick . | . . . . . Crush . | . . . . . Escape Stasis . | . . . . . Rewire 16 | . . . 16 . Trap . | . . . . . Miscellaneous . | . . . . . Route ------- -11/Scrapyard -10/Materials -10/Mines (discovered 3 exits: *Mat x2 / *Exi) -10/Exiles (discovered 2 exits: [*Min x2]) -9/Mines History --------- Turn | Location | Event 4 | -11/Scrapyard | Discovered new exit (range 15) 60 | -11/Scrapyard | Entered Materials 204 | -10/Materials | Discovered new exit (range 15) 241 | -10/Materials | Entered Mines 311 | -10/Mines | Build established: Mutant 391 | -10/Mines | Met a Derelict bent on vengeance 405 | -10/Mines | Learned location of Storage (-9) 488 | -10/Mines | Identified exit to Materials 727 | -10/Mines | Deemed a non-threat by the Exiles lab entrance 727 | -10/Mines | Discovered new exit (range 5) 796 | -10/Mines | Discovered exit to Materials (range 5) 1277 | -10/Mines | Entered Exiles 1277 | -10/Exiles | Found Exiles lab destroyed 1295 | -10/Exiles | Discovered new exit (range 15) 1585 | -10/Exiles | Learned location of Zion (-7) 1880 | -10/Exiles | Crushed by falling debris 1880 | -10/Exiles | Core integrity fell below 50% 1880 | -10/Exiles | Core integrity fell below 20% 2713 | -10/Exiles | Discovered new exit (range 14) 2733 | -10/Exiles | Entered Mines 2733 | -9/Mines | Accompanied by 2 allies 2921 | -9/Mines | Destroyed by YI-UF0 with YI-UF0's Doublenader Last Messages --------------- 02778_ Acquired Flight Unit. 02778_ U-05 Engineer lays Concrete. 02779_ U-05 Engineer builds a Wall. 02784_ U-05 Engineer lays Concrete. 02785_ Acquired Flight Unit. 02785_ U-05 Engineer lays Concrete. 02786_ Acquired 10 matter. 02786_ K-01 Serf collects debris. 02786_ U-05 Engineer lays Concrete. 02788_ U-05 Engineer builds a Wall. 02790_ K-01 Serf collects debris. 02792_ System corrupted: Energy discharge (-90). 02792_ U-05 Engineer lays Concrete. 02793_ K-01 Serf collects debris. 02793_ U-05 Engineer lays Concrete. 02797_ K-01 Serf collects debris. 02915_ The unstable cave ceiling collapses. 02915_ Commando 1a destroyed. 02917_ Aluminum Leg destroyed. 02919_ Lgt. Assault Rifle destroyed. Map ----- +----------------------------------------------------+ | | | | | ???????????????????????????#?????##????#?????????? | | ????????????????????#????#?#?????????#?????????#?? | | ???????#####???????####??????????????????????????? | | ???????## ##?????## ##?#????#??????#??#????????? | | ??????## ##????# ???##??????????##?#???????? | | ???#??# ##???? #???#?????????# ????"????? | | ???#??# #???? ####???######??# #?????????? | | ????#?## #????# ##???#### ##?# #???????#?? | | ??????### #??#?# ##### #?# #?????????# | | ???????### ##??## ## ### #?????????? | | ????????## ##?# #?????????? | | ?????????## ### ##### #???????#?# | | ??????????## """ #??### #?????#???? | | ??????????## # """ ####"# ####??????? | | ?????????## ###### """ ####" = ##?????? | | ??????#?## ###### * "#?#???? | | ???###### ## ! "#?????? | | ????# #### # ####= "#?????? | | ????# ## ###### ##?#### #?##%= ##?????? | | ?#?????## ##????## ##???# #?#" [ "#?????? | | ????????# ##????#?## ##### #?#"*% ##?????? | | ??? #??????## #?###""#"##?#????? | | ??####### #?????# ####???######?????#?? | | ????????# #????# @ ##????????????#?????? | | ????????# #???## #??##??????????#???? | | ????????# ##????# ##????????#????????? | | ???????### ##?????# #??????????????????? | | ?????????######??# ? #??????????? ??????? | | ?????????????????? #????#?????????????? | | ??????????#????#?# # ? ???????????????? | | ?????????????? ? rr% #? # ????????????????? | | ???? ?????????? ?? ?????? ???????? | | ????????????? ?? ????????????#?? | | ?????????????# ?? =% ?????????????? | | ?????????????? $ ?? ! ????????????? | | ??????????????# #### #??? ## #?????????#??? | | ???????????????? ??? ????? g #?#??????????????? | | ????????????????????##?????# #????????????????? | | ???????????????????????????? ???????????????????? | | ?????????????????????????????????????????????????? | | ?????????????????????????????????????????????????? | | ?????????????????????????????????????????????????? | | ?????????????????????????????????????????????????? | | ?????????????????????????????????????????????????? | | ?????????????????????????????????????????????????? | | ?????????????????????????????????????????????????? | | ?????????????????????????????????????????????????? | | ?????????????????????????????????????????????????? | +----------------------------------------------------+ Best States ------------- Heat Dissipation 25 Energy Generation 10 Energy Capacity 250 Matter Stores 300 Matter Capacity 300 Sight Range 16 Terrain Scan Range 18 Terrain Scan Density 10 Resistance: KI 20 Resistance: TH 20 Resistance: EX 20 Resistance: EM 20 Resistance: I 20 Resistance: S 20 Resistance: P 20 Weapon Shielding 33 Evasion (%) 55 Offensive Hacking 10 Item Schematics ----------------- None Robot Schematics ------------------ None Fabricated ------------ Nothing Alien Tech Used ----------------- None Achievements -------------- A New Friend Part-time Excavator Unlikely Earthworm Challenges ------------ None Game ------ Seed StormIntegrityStreamer Manual? 0 Play Time 00:26:09 Cumulative 3.7 hours Start 2022.04.14 @ 17:42:08 End 2022.04.14 @ 18:06:56 Sessions 1 Manual Loads 0 Difficulty Adventurer Special Mode None Game No. 6 Rogue 4 Adventurer 1 Explorer 1 Win Type - Total 0 Types 0/0/0/0/0/0/0/0/0 Lore% 11 Gallery% 9 Achievement% 10 Wizard Run 0 Options --------- ASCII 0 Keyboard 0 Movement Mouse Keybinds 0 Fullscreen 1 Font 12/Terminus Map View 83x54 Tactical HUD 1 Map Filters NONE Filters NONE Steam 0 RUN: 7743ecc5-0f36-494c-b4f1-081e7337d9da